Cogmind - Beta 13 @@@ ROGUE MODE // 2024.04.05 @ 19:58:56 Player: Spuddz Result: Self-destructed Performance ------------- Evolutions (2) 1000 Regions Visited (6) 1200 Robots Destroyed (58) 290 Value Destroyed (1596) 1596 Prototype IDs (5) 100 Alien Tech Used (0) 0 Bonus (129) 129 TOTAL SCORE: 4315 Bonus ------- High Alert Combat Kills 129 Cogmind --------- Core Integrity 236/550 Matter 119/300 Energy 240/240 System Corruption 0% Temperature Cool (19) Movement Walking (123) Location -8/Storage Parts ------- > --- POWER (1) -------- Nuclear Core > --- PROPULSION (4) --- Carbon-fiber Leg Carbon-fiber Leg Titanium Leg > --- UTILITY (4) ------ Medium Storage Unit Machine Analyzer > --- WEAPON (2) ------- Minigun Gauss Rifle > --- INVENTORY (10) --- Light Nuclear Core Improved Assault Rifle Improved Assault Rifle Minigun Assault Cannon Peak State ------------ > --- POWER ------------ Nuclear Core > --- PROPULSION ------- Aluminum Leg Carbon-fiber Leg Carbon-fiber Leg Titanium Leg > --- UTILITY ---------- Small Storage Unit Machine Analyzer Hardened Medium Armor Plating Improved Light Armor Plating > --- WEAPON ----------- Improved Lightning Gun Minigun > --- INVENTORY -------- Light Nuclear Core Aluminum Leg Improved Assault Rifle Improved Assault Rifle Minigun Minigun Minigun Assault Cannon [Rating: 34] Favorites ----------- Power Nuclear Core Engine Ion Engine Power Core Nuclear Core Propulsion Aluminum Leg Leg Aluminum Leg Utility Small Storage Unit Device Shield Generator Storage Small Storage Unit Processor Machine Analyzer Protection Improved Light Armor Plating Weapon Autogun Energy Gun EM Pulse Gun Ballistic Gun Autogun Ballistic Cannon Assault Cannon Launcher Grenade Launcher Build | -11 -10 -10 -10 -9 -8 -8 ------- Run | Yrd Mat Min Exi Min Mat Sto Slots Evolved 4 | . . . . . 4 . Power . | . . . . . . . Propulsion 2 | . . . . . 2 . Utility 2 | . . . . . 2 . Weapon . | . . . . . . . Parts Attached 54 | 8 6 2 . 5 15 18 Power 2 | 1 . . . . 1 . Engine 1 | 1 . . . . . . Core 1 | . . . . . 1 . Reactor . | . . . . . . . Propulsion 15 | 2 . . . 3 6 4 Treads . | . . . . . . . Leg 15 | 2 . . . 3 6 4 Wheel . | . . . . . . . Hover . | . . . . . . . Flight . | . . . . . . . Utility 11 | 1 1 . . . 4 5 Device 2 | . 1 . . . . 1 Storage 2 | 1 . . . . . 1 Processor 1 | . . . . . 1 . Hackware . | . . . . . . . Protection 6 | . . . . . 3 3 Artifact . | . . . . . . . Weapon 26 | 4 5 2 . 2 4 9 Energy Gun 5 | 1 . . . . . 4 Energy Cannon . | . . . . . . . Ballistic Gun 18 | 3 5 1 . 1 4 4 Ballistic Cannon 1 | . . . . . . 1 Launcher 2 | . . 1 . 1 . . Special Weapon . | . . . . . . . Impact Weapon . | . . . . . . . Slashing Weapon . | . . . . . . . Piercing Weapon . | . . . . . . . Special Melee Weapon . | . . . . . . . Unidentified Prototypes 5 | . . . . . 1 4 Parts Lost 15 | . . . . 2 2 11 Power . | . . . . . . . Propulsion 5 | . . . . 1 . 4 Utility 7 | . . . . . 2 5 Weapon 3 | . . . . 1 . 2 Highest Loss Streak 7 | . . . . 2 1 7 To Critical Strikes . | . . . . . . . Average Slot Usage (%) 96 | . 86 100 100 96 91 98 Engine 6 | . 14 14 14 14 . . Core 4 | . . . . . 8 9 Leg 32 | . 28 28 28 26 36 35 Device 6 | . 1 14 14 14 4 . Storage 11 | . 14 14 14 14 9 9 Processor 3 | . . . . . 1 9 Protection 8 | . . . . . 12 16 Ballistic Gun 21 | . 28 27 28 24 18 17 Naked Turns . | . . . . . . . Heaviest Build 31 | 13 18 18 18 18 31 31 Greatest Support 62 | 20 20 20 20 20 57 62 Greatest Overweight (x) 1 | . . . . 1 . . Average Overweight (x) . | . . . . . . . Largest Inventory Capacity 10 | 8 8 8 8 8 8 10 Average Capacity 8 | 7 8 8 8 8 8 9 Most Carried 10 | 5 8 8 8 8 8 10 Average Carried 7 | 3 7 8 8 7 7 8 Final Capacity 10 | 8 8 8 8 8 8 10 Final Carried 8 | 5 8 8 8 7 8 5 Class Distribution -------------------- 96% | Mutant 3% | Scavenger-Mutant Dominant Class ---------------- Mutant | -10/Materials Mutant | -10/Mines Mutant | -10/Exiles Mutant | -9/Mines Mutant | -8/Materials Mutant | -8/Storage Resources | -11 -10 -10 -10 -9 -8 -8 ----------- Run | Yrd Mat Min Exi Min Mat Sto Matter Collected 1880 | 196 . 84 104 346 443 707 Remotely . | . . . . . . . Salvage Created 2312 | 11 . 104 104 199 650 1244 Parts 142 | 1 . 12 6 13 37 73 Haulers Intercepted 6 | . . . . . 1 5 Recyclers Shooed 2 | . . . . 1 1 . Parts Field Recycled . | . . . . . . . Retrieved Matter . | . . . . . . . Parts Self-Destructed . | . . . . . . . Prevented . | . . . . . . . Kills | -11 -10 -10 -10 -9 -8 -8 ------- Run | Yrd Mat Min Exi Min Mat Sto Combat Hostiles Destroyed 44 | . . 6 . 9 10 19 Guns 43 | . . 5 . 9 10 19 AOE 1 | . . 1 . . . . Classes Destroyed 14 | 1 . 1 . 3 6 3 Worker 3 | . . . . . 3 . Builder 1 | . . . . . . 1 Tunneler 2 | 1 . 1 . . . . Hauler 6 | . . . . . 1 5 Recycler 1 | . . . . . . 1 Operator 1 | . . . . . . 1 Watcher 1 | . . . . . 1 . Swarmer 13 | . . 6 . 4 . 3 Grunt 11 | . . . . 3 5 3 Brawler 1 | . . . . . 1 . Sentry 15 | . . . . . 3 12 Demolisher 1 | . . . . 1 . . Hunter 2 | . . . . . 1 1 Assembled 1 | . . . . 1 . . Best Kill Streak 7 | 1 . 6 . 4 4 7 Combat Bots Only 6 | . . 6 . 4 4 6 Max Kills in Single Turn 2 | 1 . 1 . 2 1 2 Gunslinging 1 | . . . . 1 . . Exploded 1 | . . 1 . . . . Melee . | . . . . . . . Uniques/NPCs Destroyed . | . . . . . . . Combat | -11 -10 -10 -10 -9 -8 -8 -------- Run | Yrd Mat Min Exi Min Mat Sto Hostile Shots Fired 284 | . . 13 . 33 86 152 Missed 76 | . . 2 . 6 23 45 Damage Taken 2951 | . . 91 . 430 845 1585 Core 443 | . . 19 . 110 147 167 Absorbed by Shields 329 | . . 38 . 133 128 30 Core Remaining (%) 74 | 100 . . . 48 . . Volleys Fired 190 | 2 6 7 2 21 59 93 Largest 2 | 2 2 2 2 2 2 2 Hottest 69 | 40 46 53 46 53 48 69 Shots Fired 367 | 4 12 14 4 40 118 175 Gun 355 | 4 12 11 4 36 118 170 Cannon 5 | . . . . . . 5 Launcher 7 | . . 3 . 4 . . Special . | . . . . . . . Kinetic 360 | 4 12 11 4 36 118 175 Thermal . | . . . . . . . Explosive 7 | . . 3 . 4 . . Electromagnetic . | . . . . . . . Robot Hit Streak 17 | 1 3 2 3 7 17 10 Robot Miss Streak 8 | 1 2 2 1 2 8 5 Penetration Max . | . . . . . . . Secondary Targets 8 | . . . . 3 1 4 Max Gunslinging Chain 1 | . . . . 1 1 1 Shots Hit Robots 233 | 2 6 5 3 24 75 118 Core Hits 107 | 1 . 7 2 18 31 48 Critical Kills 1 | . . . . . 1 . Critical Parts Destroyed . | . . . . . . . Critical Strikes 1 | . . . . . 1 . Destroy 1 | . . . . . 1 . Melee Attacks . | . . . . . . . Impact . | . . . . . . . Slashing . | . . . . . . . Piercing . | . . . . . . . Sneak Attacks . | . . . . . . . Combat Hostiles . | . . . . . . . Follow-up Attacks . | . . . . . . . Damage Inflicted 4003 | 19 100 131 50 370 1168 2165 Guns 3903 | 19 100 96 50 343 1168 2127 Cannons 26 | . . . . . . 26 Explosions 60 | . . 35 . 25 . . Melee . | . . . . . . . Ramming 14 | . . . . 2 . 12 Kinetic 3929 | 19 100 96 50 343 1168 2153 Thermal . | . . . . . . . Explosive 60 | . . 35 . 25 . . Electromagnetic . | . . . . . . . Impact . | . . . . . . . Slashing . | . . . . . . . Piercing . | . . . . . . . Highest Corruption . | . . . . . . . Average Corruption . | . . . . . . . Corruption Purged . | . . . . . . . Corruption Blocked . | . . . . . . . Overload Shots . | . . . . . . . Overflow Damage . | . . . . . . . Projectiles . | . . . . . . . Explosions . | . . . . . . . Melee . | . . . . . . . Knockbacks 1 | . . . . . . 1 Impact . | . . . . . . . Kinetic 1 | . . . . . . 1 Secondary . | . . . . . . . Self-Inflicted Damage 39 | . . 39 . . . . Shots 1 | . . 1 . . . . Rammed . | . . . . . . . Targets Rammed 3 | . . . . 1 . 2 Kicked 3 | . . . . 1 . 2 Crushed . | . . . . . . . Highest Temperature 236 | . 12 12 6 32 111 236 Average Temperature 36 | . 5 7 4 11 30 47 Received Heat Transfer 1196 | . . . . 72 359 765 Siege Activations . | . . . . . . . Robots Corrupted . | . . . . . . . Combat Hostiles . | . . . . . . . Parts Fried . | . . . . . . . Impact Corruptions . | . . . . . . . Robots Melted . | . . . . . . . Combat Hostiles . | . . . . . . . Parts Melted . | . . . . . . . Heat Transferred . | . . . . . . . Parts Sabotaged . | . . . . . . . Parts Stolen . | . . . . . . . Parts Stripped . | . . . . . . . Power Chain Reactions . | . . . . . . . Alert | -11 -10 -10 -10 -9 -8 -8 ------- Run | Yrd Mat Min Exi Min Mat Sto Peak Influence 568 | 5 18 163 . 237 261 568 Initial 92 | . 3 6 . . 92 86 Average 203 | . 10 114 . 89 157 355 Maximum Alert Level 2 | . . . . 1 1 2 Low Security (%) 61 | 100 100 100 . 89 81 17 Level 1 23 | . . . . 10 18 44 Level 2 14 | . . . . . . 38 Level 3 . | . . . . . . . Level 4 . | . . . . . . . Level 5 . | . . . . . . . High Security . | . . . . . . . Max Security . | . . . . . . . Squads Dispatched 6 | . . . . . 1 5 Investigation 1 | . . . . . . 1 Extermination . | . . . . . . . Reinforcement 3 | . . . . . 1 2 Assault . | . . . . . . . Garrison 2 | . . . . . . 2 Intercept . | . . . . . . . Searches Triggered . | . . . . . . . Construction Impeded 1 | . . . . . . 1 Haulers Reinforced . | . . . . . . . Active Scanning Responses . | . . . . . . . Cargo Convoy Interrupts . | . . . . . . . Stealth | -11 -10 -10 -10 -9 -8 -8 --------- Run | Yrd Mat Min Exi Min Mat Sto Distress Signals 5 | . . . . . 2 3 Communications Jammed . | . . . . . . . Distress Signals . | . . . . . . . Times Spotted 73 | . . 6 . 20 18 29 Peak Tracking Total 19 | . 1 3 . 19 5 7 Tactical Retreats 2 | . . . . 1 . 1 Traps | -11 -10 -10 -10 -9 -8 -8 ------- Run | Yrd Mat Min Exi Min Mat Sto Traps Triggered 1 | . . . . . . 1 Indirectly . | . . . . . . . Trap Hack Attempts . | . . . . . . . Triggered . | . . . . . . . Disarmed 4 | . . . . . . 4 Reprogrammed 5 | . . . . . . 5 Reused 1 | . . . . . . 1 Traps Extracted . | . . . . . . . Installed . | . . . . . . . Triggered 1 | . . . . . . 1 Machines | -11 -10 -10 -10 -9 -8 -8 ---------- Run | Yrd Mat Min Exi Min Mat Sto Machines Disabled 2 | . . . . 2 . . Max in Single Turn 1 | . . . . 1 . . Machines Repaired . | . . . . . . . Machines Dismantled . | . . . . . . . Machines Sabotaged . | . . . . . . . Overloaded Fab Kills . | . . . . . . . Hacking | -11 -10 -10 -10 -9 -8 -8 --------- Run | Yrd Mat Min Exi Min Mat Sto Machines Accessed 7 | . 1 . . . . 6 Terminals 7 | . 1 . . . . 6 Fabricators . | . . . . . . . Repair Stations . | . . . . . . . Recycling Units . | . . . . . . . Scanalyzers . | . . . . . . . Garrison Access . | . . . . . . . Total Hacks 15 | . 2 . . . . 13 Successful 6 | . . . . . . 6 Failed 9 | . 2 . . . . 7 Catastrophic 2 | . . . . . . 2 Database Lockouts . | . . . . . . . Manual 3 | . 2 . . . . 1 Terminals 15 | . 2 . . . . 13 Fabricators . | . . . . . . . Repair Stations . | . . . . . . . Recycling Units . | . . . . . . . Scanalyzers . | . . . . . . . Garrison Access . | . . . . . . . Terminal Hacks 6 | . . . . . . 6 Open Door 1 | . . . . . . 1 Emergency Access Points 1 | . . . . . . 1 Locate Traps 1 | . . . . . . 1 Disarm Traps 1 | . . . . . . 1 Reprogram Traps 2 | . . . . . . 2 Fabricator Hacks . | . . . . . . . Repair Station Hacks . | . . . . . . . Recycling Unit Hacks . | . . . . . . . Scanalyzer . | . . . . . . . Garrison Access Hacks . | . . . . . . . Unauthorized Hacks . | . . . . . . . Terminals . | . . . . . . . Fabricators . | . . . . . . . Repair Stations . | . . . . . . . Recycling Units . | . . . . . . . Scanalyzers . | . . . . . . . Garrison Access . | . . . . . . . Data Cores Recovered . | . . . . . . . Used . | . . . . . . . Hacking Detections 6 | . 1 . . . . 5 Full Trace Events 2 | . . . . . . 2 Feedback Events . | . . . . . . . Feedback Blocked . | . . . . . . . Robot Schematics Acquired . | . . . . . . . Robots Built . | . . . . . . . Authchips . | . . . . . . . Time . | . . . . . . . Total Robot Build Rating . | . . . . . . . Part Schematics Acquired . | . . . . . . . Parts Built . | . . . . . . . Authchips . | . . . . . . . Time . | . . . . . . . Total Part Build Rating . | . . . . . . . Parts Repaired . | . . . . . . . Time . | . . . . . . . Parts Recycled . | . . . . . . . Recycled Matter . | . . . . . . . Retrieved Matter . | . . . . . . . Retrieved Components . | . . . . . . . Parts Scanalyzed . | . . . . . . . Part Schematics Acquired . | . . . . . . . Parts Damaged . | . . . . . . . Bothacking | -11 -10 -10 -10 -9 -8 -8 ------------ Run | Yrd Mat Min Exi Min Mat Sto Used RIF Installer . | . . . . . . . Robots Hacked . | . . . . . . . Non-combat . | . . . . . . . Combat . | . . . . . . . Robot Hacks Applied . | . . . . . . . Relay Couplers Released . | . . . . . . . Fabnet Peak Effective % . | . . . . . . . Robots Rewired . | . . . . . . . Allies Hacked . | . . . . . . . Hacks Repelled . | . . . . . . . Allies | -11 -10 -10 -10 -9 -8 -8 -------- Run | Yrd Mat Min Exi Min Mat Sto Total Allies . | . . . . . . . Largest Group . | . . . . . . . Highest-Rated Group . | . . . . . . . Highest-Rated Ally . | . . . . . . . Total Orders . | . . . . . . . Ally Attacks . | . . . . . . . Total Damage . | . . . . . . . Kills . | . . . . . . . Allies Corrupted . | . . . . . . . Allies Melted . | . . . . . . . Intel | -11 -10 -10 -10 -9 -8 -8 ------- Run | Yrd Mat Min Exi Min Mat Sto Robot Analysis Total . | . . . . . . . Derelict Logs Recovered 1 | . . 1 . . . . Drone Launches . | . . . . . . . Drone Recoveries . | . . . . . . . Exploration | -11 -10 -10 -10 -9 -8 -8 ------------- Run | Yrd Mat Min Exi Min Mat Sto Turns Passed 2852 | 69 145 198 484 386 676 894 Spaces Moved 1779 | 44 92 147 400 247 358 491 Core 11 | 11 . . . . . . Treads . | . . . . . . . Legs 1768 | 33 92 147 400 247 358 491 Wheels . | . . . . . . . Hover . | . . . . . . . Flight . | . . . . . . . Fastest Speed 50 | 50 120 120 120 120 120 122 Average Speed 121 | 102 120 120 120 126 120 122 Slowest Speed 190 | 120 120 120 120 190 122 123 Overloaded Moves . | . . . . . . . Propulsion Burnouts . | . . . . . . . Robots Hopped . | . . . . . . . Cave-ins Triggered . | . . . . . . . Exploration Rate (%) 43 | 3 22 39 72 57 32 79 Regions Visited 6 Branch Regions 4 Pre-discovered Areas 1 | . . . . 1 . . Known Exits Taken . | . . . . . . . Unknown Exits Taken 6 | 1 1 1 1 1 1 . Scrap Searched . | . . . . . . . Spaces Dug . | . . . . . . . Terrain Destroyed 40 | . . 12 . 26 . 2 Melee . | . . . . . . . Projectile 2 | . . . . . . 2 AOE 38 | . . 12 . 26 . . Terrain Rammed . | . . . . . . . Walls Destroyed . | . . . . . . . Machines Disabled . | . . . . . . . Actions | -11 -10 -10 -10 -9 -8 -8 --------- Run | Yrd Mat Min Exi Min Mat Sto Total 2161 | 62 118 156 401 288 492 644 Wait 63 | . . 1 . 10 33 19 Move 1773 | 43 91 146 399 246 357 491 Hop . | . . . . . . . Pick Up 44 | 9 8 . . 2 13 12 Fast Attach 7 | 2 1 . . . 4 . Attach 20 | 4 . . . 2 2 12 Detach . | . . . . . . . Swap 27 | 2 5 2 . 3 9 6 Drop 34 | . 7 . . 3 15 9 Fire 190 | 2 6 7 2 21 59 93 Melee . | . . . . . . . Ram . | . . . . . . . Kick 3 | . . . . 1 . 2 Crush . | . . . . . . . Escape Stasis . | . . . . . . . Rewire . | . . . . . . . Trap . | . . . . . . . Miscellaneous . | . . . . . . . Route ------- -11/Scrapyard -10/Materials -10/Mines (discovered 3 exits: *Mat x2 / *Exi) -10/Exiles (discovered 2 exits: [*Min x2]) -9/Mines -8/Materials -8/Storage History --------- Turn | Location | Event 7 | -11/Scrapyard | Discovered new exit (range 15) 70 | -11/Scrapyard | Entered Materials 199 | -10/Materials | Discovered new exit (range 7) 215 | -10/Materials | Entered Mines 306 | -10/Mines | Identified exit to Materials 315 | -10/Mines | Build established: Mutant 376 | -10/Mines | YI-UF0 nonchalantly dropped a Grenade Launcher on the ground 389 | -10/Mines | Discovered exit to Materials (range 8) 407 | -10/Mines | Deemed a non-threat by the Exiles lab entrance 409 | -10/Mines | Discovered new exit (range 5) 413 | -10/Mines | Entered Exiles 413 | -10/Exiles | Found Exiles lab destroyed 435 | -10/Exiles | Discovered new exit (range 14) 713 | -10/Exiles | Discovered new exit (range 14) 897 | -10/Exiles | Entered Mines 946 | -9/Mines | Met a Derelict bent on vengeance 957 | -9/Mines | Assembled infested the area 962 | -9/Mines | Assisted by a Guerilla fighting off Assembled 1200 | -9/Mines | Core integrity fell below 50% 1267 | -9/Mines | Discovered new exit (range 11) 1273 | -9/Mines | Learned location of Storage (-8) 1283 | -9/Mines | Entered Materials 1283 | -8/Materials | Evolved 4 slots: Propulsion x2, Utility x2 1915 | -8/Materials | Discovered new exit (range 11) 1959 | -8/Materials | Entered Storage 2691 | -8/Storage | Garrison activated, responded to threat 2720 | -8/Storage | Core integrity fell below 50% 2744 | -8/Storage | Lost 7 parts (3n2u2w) 2853 | -8/Storage | Self-destructed Last Messages --------------- stand immobile, all facing the entryway as if waiting for something. 02755_ Connecting with Terminal... 02767_ >> Machine Analyzer network decryption results: 02767_ Recycling Unit x1 02768_ R-06 Scavenger inserts Wheel into recycling unit. 02772_ O-16 Technician destroyed. 02776_ Acquired 15 matter. 02792_ Connecting with Door Terminal... 02792_ ALERT: Suspicious activity at Terminal S006. Dispatching Investigation squad. 02811_ W-25 Informer sends out distress signal. 02832_ Lgt. Armor Plating destroyed. 02833_ Y-45 Defender destroyed. 02836_ Slug penetrates G-47 Trooper. 02848_ Imp. Light Armor Plating destroyed. 02849_ Aluminum Leg destroyed. 02850_ Slug penetrates G-50 Soldier. Map ----- +----------------------------------------------------+ | ????### # ""# | | ???#### # "" T"# | | ???# "*"G ""#T | | ???# ############# ="" #??# | | ???# #???????????#=/ #### | | ???# #????????"####+####### | | ???# #????????" ! | | ???# ###??????" [*[ | | ???# #??????"#T##+####### ! | | ???# #???????### ????##= | | ???# #?????????# ??##% | | ???# #?????????# ###= | | ???# #?????????# """"" ###= | | ???# #?????????# """"" #?#! | | ???# #?????????# """"" ""#! | | ???# #????????"" Y"# | | ???# #????????"T """""?""# | | ???# #????????"" """""???# | | ???# #?????????# """""???# | | ???# #?????????# ????????# | | ???# #?????????########### | | ???# #??????????#^ # | | ???# #??????????# ^ !! # | | ???# #??????????# ! # | | ???# #??????????# ## | | ???#@ #??????????# ! ^ ## | | ???# #??????????# ## | | ???# #??????????#^ ^ ## | | ???# #??????????# ^ ## | | ???# #??????????# # | | ???# #??????#+#########+### | | ???# ??? | | ???# ??? | | ???# g ?? | | ???? ##???################# | | ????gg #??"""???????????????# | | ???? #??"Y"???????????????# | | ???? #??"?"???????????????# | | ???? #?????????????######## | | ???? [%#?????????????# """ # | | ???? ??????????????# """ # | | ?????????????????????# """ + | | ?????????????????????# # | | ?????????????????????# # | | ?????????????????????# ] # | | ?????????????????????###### # | | ??????????????????????????### | | ????????????????????????????? | | ??????????????????????####### | | ??????????????????????# | +----------------------------------------------------+ Best States ------------- Heat Dissipation 31 Energy Generation 14 Energy Capacity 250 Matter Stores 300 Matter Capacity 300 Sight Range 16 Terrain Scan Density 10 Armor Coverage 375 Evasion (%) 55 Item Schematics ----------------- None Robot Schematics ------------------ None Fabricated ------------ Nothing Alien Tech Used ----------------- None Achievements -------------- I Survived The Infestation Challenges ------------ None Game ------ Seed SmallMicroDriver Manual? 0 Play Time 00:34:32 Cumulative 8.1 hours Start 2024.04.05 @ 19:24:18 End 2024.04.05 @ 19:58:56 Sessions 1 Manual Loads 0 Difficulty Rogue Special Mode None Game No. 21 Rogue 21 Adventurer 0 Explorer 0 Win Type - Total 0 Types 0/0/0/0/0/0/0/0/0 Lore% 13 Gallery% 13 Achievement% 14 Wizard Run 0 Options --------- Layout 1 ASCII 0 Keyboard 0 Movement Mouse Keybinds 0 Fullscreen 2 Font 32/Terminus Map View 50x35 Zoom Use 0% Tactical HUD 1 Map Filters NONE Filters NONE Steam 1 RUN: a9cb3072-603e-4be1-aa4d-9ae2a5fe4a9a